[Event "ESTCC U50 2018"]
[Site "Walbrzych"]
[Date "2018.04.15"]
[Round "2"]
[White "Webster, Jim J"]
[Black "Sihvonen, Tero"]
[Result "0-1"]
[ECO "D10"]
[WhiteElo "1769"]
[BlackElo "1988"]
[Annotator "NA RC"]
[PlyCount "72"]
[EventDate "2018.??.??"]
[EventCountry "POL"]
[SourceTitle "playchess.com"]
[Source "ChessBase"]
[SourceQuality "1"]
[WhiteTeam "Scotland"]
[BlackTeam "Finland"]
[WhiteTeamCountry "SCO"]
[BlackTeamCountry "FIN"]
[TimeControl "40/5400+30:1800+30"]

1. d4 {[%emt 0:00:00]} d5 {[%emt 0:01:10]} 2. c4 {[%emt 0:00:21]} c6 {[%emt 0:02:05]} 3. cxd5 {[%emt 0:01:10]} cxd5 {[%emt 0:00:18]} 4. Nc3 {[%emt 0:00:08]} Nc6 {[%emt 0:01:50]} 5. Bf4 {[%emt 0:01:21]} a6 {[%emt 0:00:58]} 6. Nf3 {[%emt 0:00:34]} Nf6 {[%emt 0:00:57]} 7. e3 {[%emt 0:01:22]} Nh5 {[%emt 0:09:34] D13: Slav Defence: Exchange variation without ...Bf5} (7... Bg4 8. Be2 e6 9. O-O Be7 10. Rc1 Nd7 11. h3 Bh5 12. Qb3 Qb6 13. Nd2 Bxe2 14. Nxe2 Qxb3 15. Nxb3 f6 16. a3 Kf7 17. Rc2 Nb6 {0-1 (56) Melkumyan,H (2633)-Carlsen,M (2837) Riadh 2017}) 8. Bg3 {[%emt 0:05:44]} Nxg3 {[%emt 0:05:00]} 9. hxg3 {[%emt 0:00:28]} e6 {[%emt 0:00:34]} 10. a3 {[%emt 0:05:33]} Bd7 {[%emt 0:02:02]} 11. Bd3 {[%emt 0:02:09]} g6 {[%emt 0:02:22]} 12. Qe2 {[%emt 0:08:30]} Bg7 {[%emt 0:01:05]} 13. O-O $146 {[%emt 0:01:41]} ({Predecessor:} 13. Rc1 Rc8 14. b4 Rc7 15. b5 {½-½ (31) Cast,A (2121)-Binks,M (2154) Swansea 2001}) 13... O-O {[%emt 0:02:02]} 14. Rfd1 {[%emt 0:01:55]} b5 {[%emt 0:01:20]} 15. Bc2 {[%emt 0:06:11]} Qb6 {[%emt 0:02:36]} 16. Rac1 {[%emt 0:04:47]} Na5 {[%emt 0:03:19]} 17. b3 {[%emt 0:02:10]} b4 {[%emt 0:05:56]} 18. Na4 $2 {[%emt 0:05:40]} ({Better is} 18. axb4 $15 Qxb4 19. Qe1) 18... Bxa4 {[%emt 0:01:13]} 19. bxa4 {[%emt 0:00:09]} bxa3 {[%emt 0:08:47]} 20. Rb1 {[%emt 0:02:49]} Qd6 {[%emt 0:01:15]} 21. Qe1 {[%emt 0:08:24]} Nc4 {[%emt 0:01:08]} 22. Rd3 $19 {[%emt 0:03:00]} Rfb8 {[%emt 0:01:58]} 23. Rxb8+ {[%emt 0:04:53]} Rxb8 {[%emt 0:00:53]} 24. Rb3 {[%emt 0:00:21]} a5 {[%emt 0:07:04]} 25. Qb1 {[%emt 0:12:59]} Rb4 {[%emt 0:02:25]} 26. Qa2 {[%emt 0:02:25]} Qb6 {[%emt 0:02:46]} 27. Bd1 {[%emt 0:06:13]} Bf8 {[%emt 0:03:09]} 28. Bc2 {[%emt 0:06:38]} Bd6 {[%emt 0:03:56]} 29. Kh2 {[%emt 0:02:25]} f5 {[%emt 0:00:50]} 30. Bd1 {[%emt 0:02:01]} Kg7 {[%emt 0:00:50]} 31. Ne1 {[%emt 0:01:10]} Nb2 {[%emt 0:04:42]} 32. Bc2 {[%emt 0:00:41]} Rxb3 {[%emt 0:03:00]} 33. Bxb3 {[%emt 0:00:14]} Qb4 {[%emt 0:02:04]} 34. Nf3 {[%emt 0:02:06]} Kf6 {[%emt 0:01:21]} 35. Kh3 {[%emt 0:00:14]} g5 {[%emt 0:03:04]} 36. g4 {[%emt 0:00:24]} h5 {[%emt 0:00:22]} 0-1

[Event "ESTCC U50 2018"]
[Site "Walbrzych"]
[Date "2018.04.15"]
[Round "2"]
[White "Szydelko, Kazimierz"]
[Black "Nuenchert, Eveline"]
[Result "1-0"]
[ECO "A56"]
[WhiteElo "1689"]
[BlackElo "2033"]
[Annotator "NA RC"]
[PlyCount "55"]
[EventDate "2018.??.??"]
[EventCountry "POL"]
[SourceTitle "playchess.com"]
[Source "ChessBase"]
[SourceQuality "1"]
[WhiteTeam "Poland"]
[BlackTeam "Germany"]
[WhiteTeamCountry "POL"]
[BlackTeamCountry "GER"]
[TimeControl "40/5400+30:1800+30"]

1. d4 {[%emt 0:00:00]} Nf6 {[%emt 0:00:36]} 2. c4 {[%emt 0:00:00]} c5 {[%emt 0:00:05]} 3. Nf3 {[%emt 0:00:36]} cxd4 {[%emt 0:00:30]} 4. Nxd4 {[%emt 0:00:10]} g6 {[%emt 0:00:29]} 5. Nc3 {[%emt 0:00:37]} Bg7 {[%emt 0:00:21]} 6. e4 {[%emt 0:01:32]} d6 {[%emt 0:00:17]} 7. Be2 {[%emt 0:00:38]} Nc6 {[%emt 0:04:23]} 8. Be3 {[%emt 0:01:11]} Bd7 {[%emt 0:00:39]} 9. O-O {[%emt 0:00:39]} O-O {[%emt 0:00:26]} 10. Rc1 {[%emt 0:02:55]} Nxd4 {[%emt 0:03:43]} 11. Bxd4 {[%emt 0:00:37]} Bc6 {[%emt 0:00:50]} 12. Qd3 {[%emt 0:08:04] LiveBook: 62 Games} a6 {[%emt 0:03:29] B38: Sicilian: Maroczy Bind with 5...Bg7 and 7...0-0} (12... a5 13. b3 Nd7 14. Bxg7 Kxg7 15. Nd5 Nc5 16. Qe3 e6 17. Nc3 e5 18. Rfd1 Qe7 19. Rd2 Ne6 20. Bf1 f5 21. exf5 Rxf5 {½-½ (63) Eljanov,P (2723)-Guseinov,G (2613) Dubai 2014}) 13. b4 {[%emt 0:06:04]} b5 {[%emt 0:11:49]} 14. Qe3 $146 {[%emt 0:06:16]} ({Predecessor:} 14. cxb5 Bxb5 15. Nxb5 axb5 16. Rc2 Qd7 17. Qxb5 Qe6 18. Bxf6 Bxf6 19. Qc4 Qe5 20. Rb1 {1-0 (37) Nicolaescu,N (1380)-Ausan,L (1245) IECG email 2005}) 14... bxc4 {[%emt 0:04:05]} 15. Bxc4 {[%emt 0:01:42]} Ng4 {[%emt 0:03:05]} 16. Qd3 {[%emt 0:04:15]} Ne5 {[%emt 0:05:40]} 17. Bxe5 {[%emt 0:01:54]} Bxe5 {[%emt 0:00:09]} 18. Bxa6 {[%emt 0:08:27]} Bxc3 {[%emt 0:03:20]} 19. Rxc3 {[%emt 0:00:12]} Bxe4 {[%emt 0:00:19]} 20. Qxe4 {[%emt 0:00:16]} Rxa6 {[%emt 0:00:05]} 21. Qc4 {[%emt 0:01:15]} Qb6 {[%emt 0:02:14]} 22. b5 {[%emt 0:06:53]} Ra5 {[%emt 0:00:29]} 23. Rb1 {[%emt 0:01:47]} Rfa8 {[%emt 0:00:42]} 24. Rb2 {[%emt 0:01:50]} Ra4 {[%emt 0:01:58]} 25. Qe2 {[%emt 0:05:53]} Qd4 {[%emt 0:02:14]} 26. Rd3 $14 {[%emt 0:06:24]} Qxb2 {[%emt 0:03:03]} 27. Qxb2 {[%emt 0:00:38]} Rxa2 {[%emt 0:00:02]} 28. Qb3 {[%emt 0:02:22]} 1-0